Cogmind - Beta 16.1 @@@ ROGUE MODE // 2026.02.10 @ 16:05:22 Player: ILikeVoltron Result: Self-destructed Performance ------------- Evolutions (2) 1000 Regions Visited (3) 600 Robots Destroyed (37) 185 Value Destroyed (881) 881 Prototype IDs (2) 40 Alien Tech Used (0) 0 Bonus (35) 35 TOTAL SCORE: 2741 Bonus ------- Follower Combat Kills 35 Cogmind --------- Core Integrity 422/550 Matter 274/300 Energy 100/100 System Corruption 6% Temperature Cool (0) Movement Treading (160) Location -8/Materials Parts ------- > --- POWER (1) -------- (None) > --- PROPULSION (4) --- Light Treads > --- UTILITY (3) ------ Medium Storage Unit > --- WEAPON (3) ------- Hammer > --- INVENTORY (10) --- Light Nuclear Core Small Storage Unit Medium Matter Pod (100) Light Armor Plating Light Armor Plating Hacking Suite Relay Coupler [Brawler] (17) Light Assault Rifle Assault Cannon Mining Laser Peak State ------------ > --- POWER ------------ Light Nuclear Core > --- PROPULSION ------- Aluminum Leg Aluminum Leg Aluminum Leg Aluminum Leg > --- UTILITY ---------- Cooling System Medium Storage Unit Improved Terrain Scanner > --- WEAPON ----------- Heavy Assault Rifle Heavy Assault Rifle Dirty Datajack > --- INVENTORY -------- Ion Engine Light Ion Engine Small Storage Unit Medium Matter Pod Light Armor Plating Hacking Suite Light Assault Rifle Assault Cannon Missile Launcher Mining Laser [Rating: 24] Favorites ----------- Power Ion Engine Engine Ion Engine Power Core Light Nuclear Core Propulsion Aluminum Leg Treads Light Treads Leg Aluminum Leg Utility Improved Terrain Scanner Device Improved Terrain Scanner Storage Small Storage Unit Weapon Heavy Assault Rifle Energy Gun Small Laser Ballistic Gun Heavy Assault Rifle Launcher Missile Launcher Impact Weapon Hammer Special Melee Weapon Dirty Datajack Build | -11 -10 -10 -8 ------- Run | Yrd Mat Sub Mat Slots Evolved 4 | . . . 4 Power . | . . . . Propulsion 2 | . . . 2 Utility 1 | . . . 1 Weapon 1 | . . . 1 Parts Attached 22 | 1 2 1 18 Power 3 | . . . 3 Engine 2 | . . . 2 Core 1 | . . . 1 Reactor . | . . . . Propulsion 7 | . . . 7 Treads 1 | . . . 1 Leg 6 | . . . 6 Wheel . | . . . . Hover . | . . . . Flight . | . . . . Utility 5 | 1 . . 4 Device 4 | 1 . . 3 Storage 1 | . . . 1 Processor . | . . . . Hackware . | . . . . Protection . | . . . . Artifact . | . . . . Weapon 7 | . 2 1 4 Energy Gun 1 | . . . 1 Energy Cannon . | . . . . Ballistic Gun 3 | . 2 1 . Ballistic Cannon . | . . . . Launcher 1 | . . . 1 Special Weapon . | . . . . Impact Weapon 1 | . . . 1 Slashing Weapon . | . . . . Piercing Weapon . | . . . . Special Melee Weapon 1 | . . . 1 Unidentified Prototypes . | . . . . Parts Lost 17 | . . 1 16 Power 2 | . . . 2 Propulsion 6 | . . . 6 Utility 3 | . . . 3 Weapon 6 | . . 1 5 Highest Loss Streak 9 | . . 1 9 To Critical Strikes 1 | . . 1 . Average Backups 8 | 6 7 7 9 Power 1 | 1 1 1 1 Propulsion 2 | 4 3 3 . Utility 2 | . 1 2 4 Weapon 2 | 1 1 1 3 Tool/Special . | . . . . Unused Backups 21 | 6 6 . 9 Power 1 | 1 . . . Propulsion 8 | 2 5 . 1 Utility 6 | 1 . . 5 Weapon 6 | 2 1 . 3 Tool/Special . | . . . . Average Slot Usage (%) 92 | . 99 100 82 Engine 10 | . 14 14 6 Leg 27 | . 28 28 26 Device 14 | . 14 14 15 Storage 11 | . 14 14 9 Ballistic Gun 21 | . 26 28 12 Special Melee Weapon 2 | . . . 6 Peak Build Rating 24 | 9 12 12 24 Average Rating 14 | 8 11 11 18 On Entrance 9 | 6 9 12 12 Avg Prop Armor Cover (%) 5 | . . . 5 Naked Turns . | . . . . Heaviest Build 25 | 14 17 17 25 Greatest Support 40 | 20 20 20 40 Greatest Overweight (x) 6 | . . . 6 Average Overweight (x) . | . . . . Largest Inventory Capacity 10 | 8 8 8 10 Average Capacity 8 | 8 8 8 9 Most Carried 10 | 7 8 8 10 Average Carried 8 | 6 7 7 9 Final Capacity 10 | 8 8 8 10 Final Carried 10 | 7 8 8 10 Class Distribution -------------------- 86% | Mutant 13% | Scavenger-Mutant Dominant Class ---------------- Mutant | -10/Materials Mutant | -10/Subcaves Mutant | -8/Materials Resources | -11 -10 -10 -8 ----------- Run | Yrd Mat Sub Mat Matter Collected 828 | 210 121 142 355 Remotely . | . . . . Salvage Created 1202 | 209 156 48 789 Parts 77 | 15 16 4 42 Haulers Intercepted . | . . . . Recyclers Shooed . | . . . . Parts Field Recycled . | . . . . Retrieved Matter . | . . . . Parts Self-Destructed 11 | . . 11 . Prevented . | . . . . Parts Restored . | . . . . Kills | -11 -10 -10 -8 ------- Run | Yrd Mat Sub Mat Combat Hostiles Destroyed 26 | . 8 1 17 Melee 2 | . . . 2 Guns 22 | . 8 1 13 Classes Destroyed 9 | 3 2 1 3 Worker 2 | 2 . . . Builder 1 | . . . 1 Tunneler 5 | 5 . . . Recycler 3 | 1 . . 2 Swarmer 12 | . 6 . 6 Grunt 10 | . 2 . 8 Brawler 2 | . . . 2 Sentry 1 | . . . 1 Subdweller 1 | . . 1 . Best Kill Streak 5 | 4 3 1 5 Combat Bots Only 4 | . 3 1 4 Max Kills in Single Turn 2 | 2 1 1 2 Gunslinging 1 | . . . 1 Exploded . | . . . . Melee 1 | . . . 1 Uniques/NPCs Destroyed . | . . . . Combat | -11 -10 -10 -8 -------- Run | Yrd Mat Sub Mat Hostile Shots Fired 173 | . 40 9 124 Missed 53 | . 7 4 42 Hits 120 | . 33 5 82 Melee 4 | . . . 4 Projectile 116 | . 33 5 78 Critical Strikes 6 | . . 1 5 Damage Taken 1787 | . 286 117 1384 Core 204 | . 38 38 128 Absorbed by Shields . | . . . . Core Remaining (%) 84 | 100 . 69 . Volleys Fired 85 | 13 19 4 49 Largest 2 | 2 2 2 2 Hottest 99 | 80 46 46 99 Shots Fired 160 | 25 38 8 89 Gun 158 | 25 38 8 87 Cannon . | . . . . Launcher 2 | . . . 2 Special . | . . . . Kinetic 122 | . 38 8 76 Thermal 23 | 12 . . 11 Explosive 2 | . . . 2 Electromagnetic 13 | 13 . . . Robot Hit Streak 8 | 8 3 3 7 Robot Miss Streak 4 | 2 2 1 4 Penetration Max . | . . . . Secondary Targets 3 | . 1 . 2 Max Gunslinging Chain 1 | . 1 . 1 Shots Hit Robots 120 | 20 22 3 75 Core Hits 55 | 9 9 2 35 Critical Kills . | . . . . Critical Parts Destroyed 4 | . . . 4 Critical Strikes 4 | . . . 4 Smash 4 | . . . 4 Melee Attacks 34 | . . . 34 Impact 23 | . . . 23 Slashing . | . . . . Piercing 11 | . . . 11 Sneak Attacks 2 | . . . 2 Combat Hostiles . | . . . . Follow-up Attacks . | . . . . Damage Inflicted 1955 | 359 352 48 1196 Guns 1395 | 220 352 48 775 Cannons . | . . . . Explosions 164 | 139 . . 25 Melee 392 | . . . 392 Ramming 4 | . . . 4 Kinetic 1090 | . 352 48 690 Thermal 314 | 229 . . 85 Explosive 25 | . . . 25 Electromagnetic 130 | 130 . . . Impact 369 | . . . 369 Slashing . | . . . . Piercing 23 | . . . 23 Highest Corruption 6 | . . . 6 Average Corruption 2 | . . . 2 Corruption Purged . | . . . . Corruption Blocked . | . . . . Effects 6 | . . . 6 Message Errors 2 | . . . 2 Matter Fused 2 | . . . 2 Parts Rejected 1 | . . . 1 Data Loss (minor) 1 | . . . 1 Overload Shots . | . . . . Overflow Damage 126 | . . . 126 Projectiles . | . . . . Explosions 10 | . . . 10 Melee 116 | . . . 116 Knockbacks 1 | . . . 1 Impact 1 | . . . 1 Kinetic . | . . . . Secondary . | . . . . Self-Inflicted Damage 117 | . . . 117 Shots 2 | . . . 2 Rammed . | . . . . Targets Rammed 1 | . . . 1 Kicked 1 | . . . 1 Crushed . | . . . . Highest Temperature 108 | 108 1 . 58 Average Temperature 34 | 45 1 . 22 Received Heat Transfer 606 | . 54 30 522 Siege Activations . | . . . . Martial Activations . | . . . . Shielding Activations . | . . . . Robots Disrupted . | . . . . Combat Hostiles . | . . . . Robots Corrupted 2 | . . . 2 Combat Hostiles 2 | . . . 2 Parts Fried . | . . . . Impact Corruptions 5 | . . . 5 Robots Melted . | . . . . Combat Hostiles . | . . . . Parts Melted . | . . . . Heat Transferred 585 | 400 . . 185 Parts Sabotaged . | . . . . Parts Stolen . | . . . . Parts Stripped . | . . . . Power Chain Reactions 2 | 2 . . . Alert | -11 -10 -10 -8 ------- Run | Yrd Mat Sub Mat Maximum Alert Level 1 | . . . 1 Low Security (%) 94 | 100 100 . 87 Level 1 5 | . . . 12 Level 2 . | . . . . Level 3 . | . . . . Level 4 . | . . . . Level 5 . | . . . . High Security . | . . . . Max Security . | . . . . Peak Influence 289 | 20 125 . 289 Initial . | . . . . Average 67 | 4 43 . 103 Influence Increases 938 | 40 209 . 689 Destroy 0b10 Robot/C 520 | . 160 . 360 Destroy 0b10 Robot/NC 55 | 40 . . 15 Destroy Leader 80 | . 20 . 60 Allied During Kill 2 | . . . 2 Successful Hack 25 | . 13 . 12 Anti-Garrison Action 150 | . . . 150 Destroy Structure 16 | . 1 . 15 Lose Combat Pursuer 90 | . 15 . 75 Influence Decreases 649 | 40 202 7 400 Entered New Map 4 | . . 4 . Time Decay 465 | 40 202 3 220 Lost Part 160 | . . . 160 Lost Ally 20 | . . . 20 Squads Dispatched 8 | . 1 . 7 Investigation 1 | . . . 1 Extermination . | . . . . Reinforcement 3 | . 1 . 2 Assault 2 | . . . 2 Garrison 2 | . . . 2 Intercept . | . . . . Searches Triggered . | . . . . Construction Impeded . | . . . . Haulers Reinforced . | . . . . Active Scanning Responses . | . . . . Cargo Convoy Interrupts . | . . . . Stealth | -11 -10 -10 -8 --------- Run | Yrd Mat Sub Mat Distress Signals 1 | . 1 . . Communications Jammed . | . . . . Distress Signals . | . . . . Times Spotted 55 | . 14 3 38 Peak Tracking Total 10 | . 5 2 10 Tactical Retreats 4 | . 1 . 3 Traps | -11 -10 -10 -8 ------- Run | Yrd Mat Sub Mat Traps Triggered 1 | . . . 1 Indirectly . | . . . . Trap Hack Attempts . | . . . . Triggered . | . . . . Disarmed . | . . . . Reprogrammed . | . . . . Reused . | . . . . Traps Extracted . | . . . . Installed . | . . . . Triggered . | . . . . Machines | -11 -10 -10 -8 ---------- Run | Yrd Mat Sub Mat Machines Disabled 1 | . . . 1 Max in Single Turn 1 | . . . 1 Garrison Access 1 | . . . 1 Machines Repaired . | . . . . Machines Dismantled . | . . . . Machines Sabotaged . | . . . . Overloaded Fab Kills . | . . . . Hacking | -11 -10 -10 -8 --------- Run | Yrd Mat Sub Mat Machines Accessed 7 | . 4 . 3 Terminals 5 | . 4 . 1 Fabricators . | . . . . Repair Stations . | . . . . Recycling Units . | . . . . Scanalyzers 1 | . . . 1 Garrison Access 1 | . . . 1 Total Hacks 19 | . 9 . 10 Successful 6 | . 4 . 2 Failed 13 | . 5 . 8 Catastrophic 4 | . 1 . 3 Database Lockouts . | . . . . Manual 5 | . 1 . 4 Terminals 14 | . 9 . 5 Fabricators . | . . . . Repair Stations . | . . . . Recycling Units . | . . . . Scanalyzers 2 | . . . 2 Garrison Access 3 | . . . 3 Terminal Hacks 4 | . 3 . 1 Prototype ID Bank 1 | . 1 . . Branch Access Points 1 | . 1 . . Locate Traps 1 | . . . 1 Zone Layout 1 | . 1 . . Fabricator Hacks . | . . . . Repair Station Hacks . | . . . . Recycling Unit Hacks . | . . . . Scanalyzer 1 | . . . 1 Retrieve Study 1 | . . . 1 Garrison Access Hacks . | . . . . Unauthorized Hacks 1 | . 1 . . Terminals 1 | . 1 . . Assimilate 1 | . 1 . . Fabricators . | . . . . Repair Stations . | . . . . Recycling Units . | . . . . Scanalyzers . | . . . . Garrison Access . | . . . . Data Cores Recovered . | . . . . Used . | . . . . Hacking Detections 3 | . 1 . 2 Full Trace Events 1 | . . . 1 Feedback Events . | . . . . Feedback Blocked . | . . . . Robot Schematics Acquired . | . . . . Robots Built . | . . . . Authchips . | . . . . Time . | . . . . Total Robot Build Rating . | . . . . Part Schematics Acquired . | . . . . Parts Built . | . . . . Authchips . | . . . . Time . | . . . . Total Part Build Rating . | . . . . Part Studies Acquired 1 | . . . 1 Parts Repaired . | . . . . Time . | . . . . Parts Recycled . | . . . . Recycled Matter . | . . . . Retrieved Matter . | . . . . Retrieved Components . | . . . . Parts Scanalyzed . | . . . . Part Schematics Acquired . | . . . . Parts Damaged . | . . . . Bothacking | -11 -10 -10 -8 ------------ Run | Yrd Mat Sub Mat Used RIF Installer . | . . . . Robots Hacked . | . . . . Non-combat . | . . . . Combat . | . . . . Robot Hacks Applied . | . . . . Relay Couplers Released 1 | . . . 1 Machine Destruction 1 | . . . 1 Fabnet Peak Effective % . | . . . . Robots Rewired . | . . . . Allies Hacked . | . . . . Hacks Repelled . | . . . . Allies | -11 -10 -10 -8 -------- Run | Yrd Mat Sub Mat Total Allies 2 | . 1 . 1 Largest Group 1 | . 1 1 1 Highest-Rated Group 12 | . 10 10 12 Highest-Rated Ally 12 | . 10 10 12 Total Orders . | . . . . Ally Attacks 5 | . . . 5 Total Damage 50 | . . . 50 Kills 1 | . . . 1 Allies Corrupted . | . . . . Allies Melted . | . . . . Intel | -11 -10 -10 -8 ------- Run | Yrd Mat Sub Mat Active Infowar (turns) 1452 | 136 509 298 509 Terrain 1452 | 136 509 298 509 Robot Analysis Total . | . . . . Derelict Logs Recovered 1 | . . 1 . Drone Launches . | . . . . Drone Recoveries . | . . . . Exploration | -11 -10 -10 -8 ------------- Run | Yrd Mat Sub Mat Turns Passed 1544 | 150 509 298 587 Spaces Moved 771 | 18 265 236 252 Core 7 | . . . 7 Treads . | . . . . Legs 764 | 18 265 236 245 Wheels . | . . . . Hover . | . . . . Flight . | . . . . Fastest Speed 105 | 120 120 120 105 Average Speed 120 | 120 120 120 122 Slowest Speed 350 | 120 120 120 350 Overloaded Moves . | . . . . Propulsion Burnouts . | . . . . Robots Hopped . | . . . . Potential Cave-ins . | . . . . Cave-ins Triggered . | . . . . Exploration Rate (%) 25 | 3 50 19 29 Regions Visited 3 Branch Regions 1 Pre-discovered Areas . | . . . . Known Exits Taken . | . . . . Unknown Exits Taken 3 | 1 1 1 . Scrap Searched . | . . . . Spaces Dug . | . . . . Terrain Destroyed 18 | 4 . . 14 Melee . | . . . . Projectile . | . . . . AOE 18 | 4 . . 14 Terrain Rammed . | . . . . Walls Destroyed . | . . . . Machines Disabled . | . . . . Actions | -11 -10 -10 -8 --------- Run | Yrd Mat Sub Mat Total 1188 | 121 422 243 402 Wait 247 | 89 122 . 36 Move 768 | 17 264 235 252 Hop . | . . . . Pick Up 17 | 1 7 2 7 Fast Attach 9 | 1 2 . 6 Attach 8 | . . 1 7 Detach . | . . . . Swap 6 | . . . 6 Drop 13 | . 8 1 4 Fire 85 | 13 19 4 49 Melee 34 | . . . 34 Ram . | . . . . Kick 1 | . . . 1 Crush . | . . . . Escape Stasis . | . . . . Rewire . | . . . . Trap . | . . . . Miscellaneous . | . . . . Route ------- -11/Scrapyard -10/Materials (discovered 3 exits: *Min x2 / [*Sub]) -10/Subcaves -8/Materials History --------- Turn | Location | Event 5 | -11/Scrapyard | Discovered new exit (range 2) 151 | -11/Scrapyard | Entered Materials 175 | -10/Materials | Identified exit to Mines 315 | -10/Materials | Build established: Mutant 556 | -10/Materials | Discovered new exit (range 3) 660 | -10/Materials | Entered Subcaves 660 | -10/Subcaves | Accompanied by 1 ally 661 | -10/Subcaves | Approached by a straggling Scientist 671 | -10/Subcaves | Learned 2 Materials zone layouts 718 | -10/Subcaves | Discovered new exit (range 16) 958 | -10/Subcaves | Entered Materials 958 | -8/Materials | Evolved 4 slots: Propulsion x2, Utility x1, Weapon x1 1353 | -8/Materials | Garrison activated, responded to threat 1428 | -8/Materials | Lost 9 parts (1p4n1u3w) 1545 | -8/Materials | Self-destructed Last Messages --------------- 01520_ U-05 Engineer lays Concrete. 01522_ Destroyed Lgt. Nuclear Core. 01522_ G-47 Trooper system corrupted by crushing effect. 01522_ U-05 Engineer lays Concrete. 01523_ G-47 Trooper system terminally corrupted. 01523_ U-05 Engineer lays Concrete. 01524_ U-05 Engineer builds a Wall. 01525_ System corrupted: Matter fused (-10). 01529_ U-05 Engineer lays Concrete. 01530_ Imp. Heat Sink destroyed. 01530_ System corrupted by crushing effect (+4). 01530_ Knocked back. 01532_ U-05 Engineer lays Concrete. 01533_ U-05 Engineer builds a Wall. 01536_ Knocked back. 01537_ U-05 Engineer builds a Wall. 01538_ Acquired Lgt. Treads. 01539_ U-05 Engineer builds a Wall. 01542_ B-36 Bruiser destroyed. 01544_ U-05 Engineer builds a Wall. Map ----- +----------------------------------------------------+ | ??????????#??????? # """ #####?+#??????????? | | ???????????????? "" / """ #?? ??????????????? | | ??????????????? T"?# *#?? ??????????????? | | ??????????????# "" # =!! #???? ?? ?????????? | | ??????????????# [ / =! ##?????? ?????????? | | ????????????????????### =!= ###??? ???????????? | | ??????????????????????# ==[ #?????? ??????????? | | ??????????????? ??????####+########??????????????? | | ????????????? ?????????# %+[ / *#??????????????? | | ??????????????????????#?# *# ##?????????????? | | ????????????"? ?#????#?# + """ ##?????????????? | | ????????????? ???######## !# """ ##????#????????? | | ?????????????????# [ ###! #! """ #??#???????????? | | ???????????" + = = #? ????#??????????? | | ??????????? ?????# % #?#####??????#????????? | | ??????????#???#??# [####+#######????#??????????? | | ????????????#??#### ##! #???#??#?????????? | | ?????????? ???##! ##%! [ #???????#????????? | | ??????????????#! ?#! * #??#?#???????????? | | ??????????????#! ?#%= #????????????????? | | ??????????????#! l##+############?????????????? | | ??????????"???#! gb * ??????????? | | ???????????"??##! gl ??????????? | | ???????? ?"????#### ##g#######""T""?????????????? | | ??????????? ?#????# ?#g%* ##??"???????????????? | | ???????????????#??# ??# @"= ##??????????????????? | | ????????????????? ???# %" ##???#??????????????? | | ??????????????? ??## "!" ##?????#????????????? | | ????????????????##????# ! ###??#??????????????? | | ???????????????????? # u u # ??????#???????????? | | ??????????????? ? ####### ##?????????????????? | | ?????????????? ## ######??????????????????? | | ??????????????? * ??###???????????????????????? | | ?????????????? ?????????????????????????????? | | ?????????????#!! ?????????????????????????????? | | ????????????????? ??????????????????????????????? | | ???????????????? ???????????????????????????????? | | ???????????????? ? ??????????????????????????????? | | ?????????????????????????????????????????????????? | | ?????????????????????????????????????????????????? | | ?????????????????????????????????????????????????? | | | | | | | | | | | | | | | | | | | +----------------------------------------------------+ Best States ------------- Heat Dissipation 53 Energy Generation 14 Energy Capacity 250 Matter Stores 300 Matter Capacity 300 Sight Range 16 Terrain Scan Range 16 Terrain Scan Density 10 Evasion (%) 55 Recoil Reduction 1 Item Schematics ----------------- None Robot Schematics ------------------ None Fabricated ------------ Nothing Repaired ---------- Nothing Studied --------- Aluminum Leg | -8/Materials | Hacked Alien Tech Used ----------------- None Achievements -------------- None Challenges ------------ None Game ------ Seed OvertunedGreatSource Manual? 0 Play Time 00:16:52 Cumulative 191.6 hours Start 2026.02.10 @ 08:46:31 End 2026.02.10 @ 16:05:22 Sessions 4 Manual Loads 0 Difficulty Rogue Special Mode None Game No. 316 Rogue 312 Adventurer 0 Explorer 4 Win Type - Total 0 Types 0/0/0/0/0/0/0/0/0/0 Lore% 27 Gallery% 42 Achievement% 30 Wizard Run 0 Options --------- Layout 0 ASCII 0 Keyboard 1 Movement Arrows Keybinds 0 Fullscreen 1 Font 24/Smallcaps Map View 183x50 Zoom Use 0% Tactical HUD 1 Map Filters NONE Filters NONE Steam 1 RUN: 29be3f82-c867-4366-84f2-4dd3ce1fb69e